bitfinex/quotes_SOLUSD_20240718
["timestamp","ask_amount","ask_price","bid_price","bid_amount"]
[1721268847419,7.56811665,158.59,158.54,15.7687]
[1721268847604,1.26251665,158.58,158.51,15.7714]
[1721268847811,6.3068,158.56,158.5,6.3088]
[1721268848115,12.6193,158.56,158.5,6.3088]
[1721268848426,7.57501665,158.56,158.49,30.57]
[1721268848606,13.88181665,158.56,158.49,30.57]
[1721268849011,13.88181665,158.56,158.5,6.309]
[1721268849633,7.57501665,158.56,158.48,15.7745]
[1721268850331,6.3076,158.54,158.48,15.7745]
[1721268850518,1.26251665,158.53,158.48,15.7745]
[1721268850706,1.26251665,158.53,158.46,30.57]
[1721268850911,6.3084,158.52,158.45,22.0882]
[1721268851119,7.57131665,158.51,158.45,22.0882]
[1721268851318,1.26251665,158.5,158.45,22.0882]
[1721268851630,7.57191665,158.5,158.43,36.8815]
[1721268851828,6.4643,158.48,158.43,6.3115]
[1721268852059,6.4643,158.48,158.42,15.7807]
[1721268852060,1.26251665,158.47,158.42,22.093]
[1721268852334,1.26251665,158.47,158.42,15.7807]
[1721268852587,6.3107,158.46,158.39,22.0967]
[1721268852835,1.26251665,158.45,158.39,22.0967]
[1721268853220,1.26251665,158.46,158.39,15.7836]
[1721268853417,1.26251665,158.46,158.4,6.3131]
[1721268853629,1.26251665,158.45,158.39,22.097]
[1721268854747,7.57361665,158.45,158.39,22.097]
[1721268855039,7.57401665,158.44,158.38,6.3138]
[1721268855244,1.26251665,158.47,158.39,1.26252255]
[1721268855557,1.26251665,158.47,158.41,6.3126]
[1721268855911,6.4643,158.48,158.42,1.26231475]
[1721268856107,6.4643,158.48,158.37,85.0105]
[1721268856108,7.72681665,158.48,158.37,85.0105]
[1721268856360,7.72681665,158.48,158.44,6.3115]
[1721268856841,6.4643,158.48,158.44,6.3115]
[1721268857047,7.72681665,158.48,158.44,6.3115]
[1721268857544,7.72681665,158.48,158.43,6.3118]
[1721268858046,14.03671665,158.48,158.42,15.78]
[1721268858252,6.3104,158.47,158.4,6.313]
[1721268858435,1.26251665,158.46,158.4,6.313]
[1721268858621,1.26251665,158.45,158.4,6.313]
[1721268858951,7.57361665,158.45,158.38,6.3135]
[1721268859244,7.57361665,158.45,158.38,6.3138]
[1721268859434,7.57361665,158.45,158.37,15.7849]
[1721268859435,1.26251665,158.45,158.37,15.7849]
[1721268859617,1.26251665,158.44,158.38,1.26249959]
[1721268859817,1.26251665,158.44,158.39,6.3132]
[1721268860242,1.26251665,158.44,158.38,6.3138]
[1721268860432,6.3119,158.44,158.37,22.0991]
[1721268860652,7.57441665,158.43,158.37,22.0991]
[1721268860869,1.26251665,158.47,158.37,15.7849]
[1721268861161,6.3119,158.44,158.37,22.0991]
[1721268861329,1.26251665,158.43,158.37,22.0991]
[1721268861529,21.26251665,158.46,158.37,22.0991]
[1721268861753,6.3115,158.44,158.38,6.3139]
[1721268861952,1.26251665,158.45,158.37,15.7849]
[1721268862341,6.3116,158.44,158.37,22.0988]
[1721268862655,1.26251665,158.43,158.38,6.3138]
[1721268863760,1.26251665,158.42,158.34,16.1454742]
[1721268863943,6.3124,158.42,158.36,6.3146]
[1721268864565,6.312,158.43,158.36,6.3146]
[1721268864865,6.3136,158.39,158.34,17.40816382]
[1721268865038,7.57561665,158.41,158.34,22.4608742]
[1721268865230,7.57561665,158.41,158.35,1.2628107]
[1721268865434,7.57561665,158.41,158.34,22.4608742]
[1721268865745,7.57561665,158.41,158.35,7.57774034]
[1721268865943,21.5439,158.42,158.39,6.3132]
[1721268866151,21.5439,158.42,158.39,6.3134]
[1721268866374,21.5439,158.42,158.37,15.7856]
[1721268866375,21.5439,158.42,158.38,6.3138]
[1721268866553,21.5439,158.42,158.37,22.0998]
[1721268866945,21.5439,158.42,158.38,1.26257422]
[1721268867159,21.5439,158.42,158.37,15.7856]
[1721268867541,21.5439,158.42,158.38,6.3138]
[1721268867759,21.5439,158.42,158.38,6.3137]
[1721268867953,21.5439,158.42,158.37,15.7856]
[1721268867954,21.5439,158.42,158.37,22.0998]
[1721268868456,22.80641665,158.42,158.38,1.26258075]
[1721268868653,21.5439,158.42,158.38,1.26258075]
[1721268868861,21.5439,158.42,158.38,1.26256492]
[1721268869279,21.5439,158.42,158.37,15.7856]
[1721268869954,21.5439,158.42,158.38,6.3137]
[1721268870476,21.5439,158.42,158.39,7.5758777]
[1721268870667,21.5439,158.42,158.4,1.26247832]
[1721268872055,21.5439,158.42,158.38,6.3139]
[1721268872565,21.5439,158.42,158.37,15.7856]
[1721268872872,21.5439,158.42,158.37,22.0999]
[1721268873176,21.5439,158.42,158.38,6.3138]
[1721268873366,21.5439,158.42,158.38,7.57630141]
[1721268873886,21.5439,158.42,158.37,22.0998]
[1721268875569,21.5439,158.42,158.34,0.3567742]
[1721268875769,1.26251665,158.41,158.36,6.3147]
[1721268876588,7.57531665,158.41,158.35,6.3151]
[1721268876787,1.26251665,158.41,158.34,0.3567742]
[1721268877111,21.5439,158.42,158.35,15.7871]
[1721268877472,21.5439,158.42,158.38,15.7846]
[1721268877799,21.5439,158.42,158.39,7.57586545]
[1721268877970,21.5439,158.42,158.4,1.26246544]
[1721268878765,1.26251665,158.49,158.41,6.3127]
[1721268878766,22.2886,158.46,158.41,6.3127]
[1721268878996,22.2886,158.46,158.42,1.26224951]
[1721268879377,22.2886,158.46,158.43,1.26226634]
[1721268879695,22.2886,158.46,158.41,6.3127]
[1721268879879,28.5995,158.46,158.42,1.26226043]
[1721268880082,28.5995,158.46,158.4,22.0949]
[1721268880394,28.5995,158.46,158.4,15.7819]
[1721268880585,28.5995,158.46,158.4,22.0949]
[1721268880778,22.2886,158.46,158.4,22.0949]
[1721268881300,23.55111665,158.46,158.39,6.3135]
[1721268881587,22.2886,158.46,158.39,6.3135]
[1721268881975,6.3117,158.44,158.38,6.3138]
[1721268882189,6.3117,158.44,158.39,1.26242928]
[1721268882487,7.57451665,158.43,158.37,22.0996]
[1721268882668,22.2886,158.46,158.38,6.3138]
[1721268882669,6.3116,158.44,158.38,6.3138]
[1721268882865,1.26251665,158.45,158.39,6.3132]
[1721268883089,1.26251665,158.45,158.37,15.7854]
[1721268883575,1.26251665,158.45,158.35,30.65]
[1721268883889,1.26251665,158.45,158.35,36.9647]
[1721268883890,6.3126,158.42,158.35,36.9647]
[1721268884090,6.3126,158.42,158.36,6.3146]
[1721268884313,1.26251665,158.44,158.37,6.3141]
[1721268884466,7.57411665,158.44,158.36,15.786]
[1721268884667,7.57411665,158.44,158.38,6.3138]
[1721268884872,7.57411665,158.44,158.37,6.3142]
[1721268885285,1.26251665,158.44,158.36,15.786]
[1721268885497,21.26251665,158.45,158.36,15.786]
[1721268885695,27.57391665,158.45,158.39,6.3134]
[1721268885888,21.26251665,158.45,158.36,15.786]
[1721268886482,6.3119,158.44,158.37,6.3142]
[1721268886886,1.26251665,158.43,158.38,6.3138]
[1721268887202,22.2886,158.46,158.39,1.26245211]
[1721268887399,22.2886,158.46,158.41,6.3124]
[1721268887602,28.5994,158.46,158.4,22.0952]
[1721268887805,1.26251665,158.45,158.4,15.7821]
[1721268888099,1.26251665,158.45,158.37,15.7854]
[1721268888807,6.3119,158.43,158.37,22.0996]
[1721268889171,1.26251665,158.45,158.37,15.7854]
[1721268889395,6.3115,158.44,158.38,6.3138]
[1721268889602,1.26251665,158.43,158.38,6.3138]
[1721268889988,7.57401665,158.44,158.38,6.3138]
[1721268890180,1.26251665,158.44,158.39,6.3134]
[1721268890705,7.57401665,158.44,158.38,6.3138]
[1721268891008,1.26251665,158.44,158.39,6.3135]
[1721268891995,7.57371665,158.45,158.39,6.3135]
[1721268892602,6.3122,158.43,158.37,22.0994]
[1721268892904,7.57491665,158.42,158.37,15.7854]
[1721268893084,1.26251665,158.41,158.37,15.7854]
[1721268893681,1.26251665,158.41,158.37,22.0997]
[1721268893881,7.57491665,158.42,158.37,15.7854]
[1721268894104,1.26251665,158.41,158.37,15.7854]
[1721268894410,1.26251665,158.41,158.36,6.3146]
[1721268896191,6.4158,158.4,158.36,6.3146]
[1721268896992,17.14601665,158.39,158.34,22.4601742]
[1721268897189,17.14601665,158.39,158.35,6.315]
[1721268897517,15.8835,158.39,158.35,6.315]
[1721268897812,17.14601665,158.39,158.35,6.315]
[1721268898696,17.14601665,158.39,158.34,22.4605742]
[1721268899119,17.14601665,158.39,158.34,0.3567742]
[1721268899282,6.3148,158.36,158.34,0.3567742]
[1721268899487,1.26251665,158.35,158.34,0.3567742]
[1721268899897,7.57711665,158.37,158.34,0.3567742]
[1721268900816,1.26251665,158.37,158.34,0.3567742]
[1721268901017,21.26251665,158.37,158.34,0.3567742]
[1721268901243,22.8644,158.36,158.24,31.5962]
[1721268901393,21.26251665,158.35,158.27,6.3182]
[1721268901596,6.3162,158.33,158.26,6.3186]
[1721268901799,1.26251665,158.34,158.24,30.65]
[1721268902027,21.26251665,158.35,158.31,6.3166]
[1721268902187,1.26251665,158.35,158.3,15.7926]
[1721268902691,22.8644,158.36,158.31,1.2631958]
[1721268902907,22.8644,158.36,158.3,15.7926]
[1721268903215,1.26251665,158.35,158.3,15.7926]
[1721268903405,22.8644,158.36,158.31,6.3164]
[1721268903605,22.8644,158.36,158.3,15.7926]
[1721268903821,7.57761665,158.35,158.3,15.7926]
[1721268904028,7.57761665,158.35,158.27,30.65]
[1721268904029,6.3158,158.34,158.28,6.3178]
[1721268904195,7.57861665,158.33,158.27,15.7956]
[1721268904524,22.8644,158.36,158.27,15.7956]
[1721268904525,7.57881665,158.32,158.27,15.7956]
[1721268904700,1.26251665,158.31,158.23,15.7991]
[1721268904901,6.3179,158.29,158.23,15.7991]
[1721268905105,7.58041665,158.28,158.23,15.7991]
[1721268905327,6.3919,158.29,158.23,22.1189]
[1721268905625,1.26251665,158.28,158.23,22.1189]
[1721268905923,21.6194,158.29,158.25,6.3189]
[1721268907185,21.6194,158.29,158.24,6.3194]
[1721268907419,1.26251665,158.28,158.23,15.7991]
[1721268908018,6.379,158.32,158.26,15.7966]
[1721268908223,6.379,158.32,158.27,1.26324318]
[1721268908392,6.379,158.32,158.29,15.7929]
[1721268908593,6.379,158.32,158.24,30.65]
[1721268908786,6.379,158.32,158.26,15.7967]
[1721268908787,1.26251665,158.31,158.26,15.7967]
[1721268909217,6.379,158.32,158.26,15.7967]
[1721268909693,6.379,158.32,158.27,1.26336576]
[1721268910030,6.379,158.32,158.28,15.7939]
[1721268910189,15.2675,158.34,158.28,15.7939]
[1721268910388,15.2675,158.34,158.32,6.3162]
[1721268910591,15.2675,158.34,158.31,15.7917]
[1721268911025,15.2675,158.34,158.27,46.445]
[1721268911231,15.2675,158.34,158.3,15.7923]
[1721268911429,15.2675,158.34,158.32,6.3162]
[1721268911920,15.2675,158.34,158.31,6.3166]
[1721268912130,15.2675,158.34,158.3,15.7923]
[1721268912616,15.2675,158.34,158.31,6.3165]
[1721268912843,6.3281,158.36,158.32,15.7899]
[1721268913150,16.5112,158.38,158.35,6.3151]
[1721268913326,6.4158,158.4,158.36,1.26279232]
[1721268913522,6.4158,158.4,158.38,6.3139]
[1721268914028,6.4158,158.4,158.37,6.3142]
[1721268914227,6.4158,158.4,158.38,7.57624637]
[1721268914819,6.4158,158.4,158.38,6.3137]
[1721268915041,6.0048,158.46,158.38,1.26249374]
[1721268915248,6.0048,158.46,158.43,6.3118]
[1721268915421,6.0048,158.46,158.42,22.0921]
[1721268915750,6.0048,158.46,158.43,7.57367024]
[1721268915959,6.0048,158.52,158.47,6.3099]
[1721268916124,6.0048,158.52,158.47,22.0857]
[1721268916326,6.0048,158.52,158.48,6.3097]
[1721268916526,6.0048,158.52,158.47,22.0861]
[1721268916747,6.0048,158.52,158.47,15.7758]
[1721268917120,6.0048,158.52,158.48,1.2617143]
[1721268917320,6.0048,158.52,158.49,1.26164267]
[1721268917526,6.0048,158.52,158.5,1.26160182]
[1721268917932,6.0048,158.52,158.49,6.3094]
[1721268918154,6.0048,158.52,158.48,6.3099]
[1721268918449,6.0048,158.52,158.47,15.7758]
[1721268918648,6.0048,158.52,158.48,1.26171743]
[1721268918871,6.0048,158.52,158.47,22.086]
[1721268919034,6.0048,158.52,158.47,15.7758]
[1721268919446,6.0048,158.52,158.47,22.086]
[1721268920246,6.0048,158.52,158.47,15.7758]
[1721268921365,1.26251665,158.51,158.43,15.7788]
[1721268921536,16.4226,158.5,158.43,22.0907]
[1721268921736,16.4226,158.5,158.44,1.26197077]
[1721268921937,16.4226,158.5,158.45,17.03871543]
[1721268922141,16.4226,158.5,158.45,15.7769]
[1721268922870,16.4226,158.5,158.46,1.26177578]
[1721268923036,16.4226,158.5,158.48,6.3098]
[1721268923243,6.0048,158.52,158.49,1.26172408]
[1721268923439,12.3131,158.52,158.44,15.7785]
[1721268923637,6.0048,158.52,158.44,15.7785]
[1721268923846,6.3091,158.5,158.44,15.7785]
[1721268924044,6.3088,158.51,158.44,22.0899]
[1721268924266,6.3095,158.5,158.44,15.7785]
[1721268924437,6.3099,158.48,158.42,6.3122]
[1721268924645,6.3096,158.49,158.42,6.3122]
[1721268925038,1.26251665,158.51,158.44,6.3115]
[1721268925258,21.26251665,158.51,158.42,15.7798]
[1721268925568,6.3099,158.48,158.42,15.7798]
[1721268926059,6.3104,158.47,158.43,1.26203601]
[1721268926257,20.0,158.51,158.36,15.7866]
[1721268926258,1.26251665,158.46,158.36,15.7866]
[1721268926458,12.6067,158.45,158.38,6.3138]
[1721268927266,6.2953,158.45,158.4,6.313]
[1721268927445,6.2953,158.45,158.41,1.26223738]
[1721268927970,12.6065,158.45,158.39,6.3134]
[1721268928171,6.3121,158.43,158.36,6.3144]
[1721268928347,1.26251665,158.42,158.37,1.2626068]
[1721268928672,6.3119,158.43,158.37,7.5768068]
[1721268928871,6.2953,158.45,158.38,15.7841]
[1721268929044,6.2953,158.45,158.41,6.3124]
[1721268929367,6.2953,158.45,158.42,1.26219527]
[1721268929557,6.2953,158.45,158.43,1.26223035]
[1721268929767,6.2953,158.45,158.41,1.26223042]
[1721268930371,6.3116,158.44,158.37,52.7495]
[1721268930563,1.26251665,158.43,158.37,15.7856]
[1721268930869,7.57481665,158.42,158.36,6.3144]
[1721268931046,7.57481665,158.42,158.37,1.26264651]
[1721268931372,7.57441665,158.43,158.38,1.26263722]
[1721268931557,1.26251665,158.42,158.36,6.3146]
[1721268931747,15.0653,158.44,158.37,15.7855]
[1721268931944,6.312,158.43,158.37,15.7855]
[1721268932146,7.57481665,158.42,158.37,15.7855]
[1721268932447,1.26251665,158.43,158.34,30.65]
[1721268932649,1.26251665,158.42,158.34,22.1041]
[1721268933149,6.18,158.41,158.34,22.1041]
[1721268933473,1.26251665,158.4,158.34,22.1041]
[1721268933660,6.18,158.41,158.35,1.26270843]
[1721268933867,6.18,158.41,158.39,6.3135]
[1721268934171,6.18,158.41,158.38,15.7841]
[1721268934376,6.18,158.41,158.37,1.26257175]
[1721268934568,6.18,158.41,158.38,6.3138]
[1721268934761,6.18,158.41,158.39,1.26245425]
[1721268934953,6.18,158.41,158.4,7.5755765]
[1721268935271,6.0618,158.45,158.4,1.2624765]
[1721268935451,6.0618,158.45,158.43,6.3115]
[1721268935648,6.0618,158.45,158.44,1.26214161]
[1721268935851,6.0618,158.45,158.43,1.26214006]
[1721268936278,16.5714,158.48,158.43,7.57394006]
[1721268936571,16.5714,158.48,158.44,6.3115]
[1721268936776,16.5714,158.48,158.41,15.781]
[1721268936982,6.3103,158.47,158.42,1.26202376]
[1721268937152,6.3103,158.47,158.41,22.0937]
[1721268937473,1.26251665,158.46,158.38,15.7844]
[1721268937677,1.26251665,158.45,158.38,15.7844]
[1721268937883,6.3119,158.44,158.39,1.26237369]
[1721268938188,6.3115,158.45,158.4,1.26242872]
[1721268938951,6.3116,158.44,158.37,15.7848]
[1721268939466,6.3116,158.44,158.38,1.26243648]
[1721268939648,7.92611665,158.43,158.37,15.7848]
[1721268939849,22.8072,158.42,158.36,6.3145]
[1721268941383,17.75731665,158.42,158.34,22.1035]
[1721268941552,17.75731665,158.42,158.35,6.3149]
[1721268941753,6.3127,158.41,158.35,6.3149]
[1721268942171,7.57561665,158.4,158.34,22.1038]
[1721268942477,16.4948,158.42,158.36,6.3146]
[1721268942478,24.06961665,158.42,158.36,6.3146]
[1721268942779,24.06961665,158.42,158.37,1.26257882]
[1721268942981,22.8071,158.42,158.37,1.26257882]
[1721268943162,16.4948,158.42,158.37,6.3142]
[1721268943360,22.8071,158.42,158.36,6.3146]
[1721268943558,24.06961665,158.42,158.36,6.3146]
[1721268943764,6.3127,158.41,158.35,6.315]
[1721268943967,1.26251665,158.4,158.34,15.7884]
[1721268944278,21.26251665,158.41,158.34,15.7884]
[1721268944660,21.26251665,158.41,158.31,30.65]
[1721268944852,21.26251665,158.41,158.33,6.3159]
[1721268945063,6.314,158.38,158.34,1.262852]
[1721268945356,7.57691665,158.37,158.31,22.1076]
[1721268945575,6.314,158.38,158.32,7.57926057]
[1721268945783,6.314,158.38,158.33,1.2629276]
[1721268946690,6.3135,158.39,158.33,7.5787276]
[1721268947464,6.314,158.38,158.33,1.2629276]
[1721268947982,6.3143,158.37,158.34,1.26280344]
[1721268948184,6.3143,158.37,158.31,22.1076]
[1721268948599,6.3139,158.38,158.32,6.3162]
[1721268949091,6.3139,158.38,158.33,1.26285403]
[1721268949907,6.3144,158.37,158.33,1.26285403]
[1721268950559,6.3144,158.37,158.34,1.26286902]
[1721268951463,6.314,158.38,158.34,1.26286902]
[1721268951664,7.37641665,158.4,158.35,1.26284432]
[1721268951864,7.37641665,158.4,158.31,15.791]
[1721268951865,21.26251665,158.39,158.34,1.26279796]
[1721268952085,20.0,158.39,158.35,1.26293965]
[1721268952274,20.0,158.39,158.32,1.26282352]
[1721268952476,26.3136,158.39,158.33,7.5785039]
[1721268952862,20.0,158.39,158.34,6.3154]
[1721268953193,15.7781,158.45,158.34,6.3154]
[1721268953194,6.2834,158.44,158.35,1.26274223]
[1721268953495,6.3123,158.42,158.36,6.3147]
[1721268953691,6.3128,158.41,158.35,22.1023]
[1721268954082,6.3131,158.4,158.35,22.1023]
[1721268954285,6.3131,158.4,158.35,15.7873]
[1721268954462,6.314,158.38,158.32,22.1068]
[1721268954790,6.3136,158.39,158.33,7.57864811]
[1721268954955,1.26251665,158.42,158.32,15.7906]
[1721268955161,6.3135,158.39,158.33,6.3156]
[1721268955362,6.3137,158.39,158.33,6.3156]
[1721268955597,6.3137,158.39,158.34,1.26277545]
[1721268955964,6.3137,158.39,158.33,6.3156]
[1721268956489,6.314,158.38,158.32,15.7906]
[1721268956680,6.314,158.38,158.33,1.26288982]
[1721268958090,1.26251665,158.42,158.33,1.26288982]
[1721268958298,6.3136,158.39,158.34,1.26277465]
[1721268958482,21.26251665,158.42,158.33,6.3158]
[1721268958483,1.26251665,158.38,158.33,1.26277511]
[1721268958798,15.6645,158.4,158.33,1.26277511]
[1721268958799,6.3147,158.36,158.33,1.26277511]
[1721268959095,7.32301665,158.37,158.33,1.26277511]
[1721268959096,12.3749,158.37,158.33,1.26277511]
[1721268959571,6.0605,158.37,158.34,1.26298642]
[1721268959985,6.0605,158.37,158.33,1.26294218]
[1721268960413,7.32301665,158.37,158.33,1.26294218]
[1721268960578,6.0605,158.37,158.33,6.3158]
[1721268960973,6.0605,158.37,158.34,1.26280605]
[1721268961172,12.3748,158.37,158.34,1.26280605]
[1721268961419,6.0605,158.37,158.34,1.26280605]
[1721268962276,6.0605,158.37,158.32,7.578991]
[1721268962476,12.3748,158.37,158.33,1.262891]
[1721268962687,12.3748,158.37,158.31,15.7909]
[1721268963088,12.3748,158.37,158.31,22.1075]
[1721268963292,6.0605,158.37,158.32,7.5791783]
[1721268963505,6.0605,158.37,158.33,1.26295607]
[1721268964104,6.0605,158.37,158.33,7.57885607]
[1721268964599,6.0605,158.37,158.34,1.26289197]
[1721268964807,13.63741665,158.37,158.31,22.1075]
[1721268966886,13.63741665,158.37,158.32,1.26297062]
[1721268967186,7.32301665,158.37,158.33,1.26297254]
[1721268967387,6.0605,158.37,158.33,1.26297254]
[1721268968185,12.3748,158.37,158.33,1.26297254]
[1721268968380,6.3154,158.35,158.29,6.3173]
[1721268968585,6.3154,158.35,158.28,46.4444]
[1721268968586,6.0605,158.37,158.31,6.3166]
[1721268969088,6.0605,158.37,158.32,6.3162]
[1721268969293,6.0605,158.37,158.33,1.26296869]
[1721268970385,12.3748,158.37,158.34,15.34]
[1721268970590,6.0605,158.37,158.34,15.34]
[1721268971189,16.92701665,158.4,158.35,16.60296349]
[1721268971388,20.0,158.39,158.35,16.60296349]
[1721268971608,20.0,158.39,158.36,1.26280798]
[1721268971813,20.0,158.39,158.36,16.60280798]
[1721268972003,20.0,158.39,158.37,1.26280051]
[1721268972309,1.26251665,158.39,158.34,22.1031]
[1721268972495,7.57611665,158.39,158.35,15.34]
[1721268973121,6.3143,158.37,158.31,6.3164]
[1721268973416,6.3143,158.37,158.33,15.34]
[1721268973619,6.314,158.38,158.33,16.60296761]
[1721268973921,1.26251665,158.37,158.33,16.60296761]
[1721268974230,1.26251665,158.37,158.32,15.34]
[1721268974394,6.3148,158.36,158.32,15.34]
[1721268974713,7.57731665,158.36,158.31,15.34]
[1721268974918,6.3148,158.36,158.32,15.34]
[1721268975999,1.26251665,158.39,158.33,16.60309607]
[1721268976316,21.26251665,158.39,158.33,16.60309607]
[1721268976532,6.3142,158.38,158.33,1.26309607]
[1721268976717,20.0,158.37,158.33,16.60309607]
[1721268976897,21.26251665,158.37,158.32,15.34]
[1721268977224,6.3152,158.35,158.32,15.34]
[1721268977723,1.26251665,158.35,158.27,22.1133]
[1721268977921,28.0569,158.34,158.29,15.34]
[1721268978111,1.26251665,158.33,158.28,21.6579]
[1721268978318,1.26251665,158.32,158.26,6.3183]
[1721268978501,16.60251665,158.32,158.26,21.6583]
[1721268978702,6.3167,158.31,158.26,15.34]
[1721268978920,1.26251665,158.3,158.26,15.34]
[1721268979222,16.60251665,158.3,158.25,15.34]
[1721268979426,1.26251665,158.29,158.25,15.34]
[1721268979723,1.26251665,158.29,158.24,1.26361275]
[1721268979920,6.3179,158.28,158.24,15.34]
[1721268980347,1.26251665,158.27,158.22,6.3201]
[1721268980700,6.3179,158.28,158.22,6.3201]
[1721268980903,7.58081665,158.27,158.21,22.1219]
[1721268981234,30.9793,158.33,158.21,15.8013]
[1721268981235,6.1317,158.3,158.21,15.8013]
[1721268981412,21.26251665,158.29,158.21,15.8013]
[1721268981735,27.58031665,158.29,158.22,6.3203]
[1721268981926,6.318,158.28,158.22,6.3203]
[1721268982234,15.4518,158.26,158.19,0.8099708]
[1721268982532,6.5826,158.24,158.19,0.8099708]
[1721268982714,7.58241665,158.23,158.19,0.8099708]
[1721268982912,6.3204,158.22,158.19,0.8099708]
[1721268983322,7.58331665,158.21,158.19,0.8099708]
[1721268983511,6.3208,158.21,158.19,0.8099708]
[1721268983708,1.26251665,158.2,158.19,0.8099708]
[1721268983914,7.58361665,158.2,158.19,0.8099708]
[1721268984136,21.7729,158.2,158.19,0.8099708]
[1721268984436,88.03541665,158.2,158.19,0.8099708]
[1721268984616,6.3224,158.17,158.11,6.3246]
[1721268984935,1.26251665,158.16,158.1,22.1369]
[1721268985132,7.58521665,158.16,158.1,22.1369]
[1721268985439,6.3235,158.14,158.08,6.3257]
[1721268985810,1.26251665,158.14,158.09,6.3253]
[1721268986025,6.3227,158.16,158.09,6.3253]
[1721268986224,21.26251665,158.15,158.08,1.26483025]
[1721268986401,7.58601665,158.14,158.08,1.26483025]
[1721268986934,7.58601665,158.14,158.03,2.07483172]
[1721268986935,15.0683,158.12,158.03,2.07483172]
[1721268987117,15.0683,158.12,158.06,15.8158]
[1721268987310,15.0683,158.12,158.08,6.3257]
[1721268987311,16.33081665,158.12,158.08,6.3257]
[1721268987631,15.0683,158.12,158.09,6.3251]
[1721268988154,6.6237,158.13,158.09,6.3254]
[1721268988434,6.6237,158.13,158.08,22.1395]
[1721268988640,1.26251665,158.12,158.08,15.814]
[1721268988806,1.26251665,158.12,158.04,15.818]
[1721268989003,1.26251665,158.12,158.03,0.8099708]
[1721268989203,21.26251665,158.12,158.03,0.8099708]
[1721268989402,21.26251665,158.12,158.03,7.1375708]
[1721268989403,6.3257,158.09,158.03,7.1375708]
[1721268991333,6.3272,158.05,158.03,0.8099708]
[1721268991561,7.58971665,158.05,158.03,0.8099708]
[1721268991712,1.26251665,158.04,158.03,0.8099708]
[1721268991907,7.46521665,158.06,158.03,0.8099708]
[1721268992139,6.3274,158.05,158.03,0.8099708]
[1721268992438,1.26251665,158.04,158.03,0.8099708]
[1721268992647,7.59001665,158.04,158.03,0.8099708]
[1721268992814,72.59001665,158.04,158.03,0.8099708]
[1721268993215,21.26251665,158.04,157.94,15.828]
[1721268993530,6.3292,158.0,157.94,15.828]
[1721268993732,7.59121665,158.02,157.95,6.331]
[1721268993938,20.0,158.05,157.95,6.331]
[1721268993939,7.59141665,158.01,157.95,6.331]
[1721268994109,1.26251665,158.0,157.95,6.331]
[1721268994816,21.26251665,158.05,157.94,30.71]
[1721268995014,6.2027,158.06,158.03,6.3279]
[1721268995211,6.2027,158.06,158.01,22.1491]
[1721268995424,7.58991665,158.05,157.97,15.8256]
[1721268995629,1.26251665,158.05,157.97,15.8256]
[1721268995945,7.58991665,158.05,157.98,7.59543928]
[1721268996117,7.58991665,158.05,157.97,15.8256]
[1721268996450,7.59001665,158.04,157.97,22.1555]
[1721268996612,1.26251665,158.05,157.97,15.8256]
[1721268996812,1.26251665,158.04,157.98,6.3298]
[1721268997013,1.26251665,158.04,157.98,7.59548327]
[1721268997314,1.26251665,158.04,157.97,15.8256]
[1721268997742,1.26251665,158.04,157.94,15.8287]
[1721268997946,1.26251665,158.04,157.98,6.3295]
[1721268998117,1.26251665,158.04,158.0,6.329]
[1721268998438,1.26251665,158.04,157.94,30.71]
[1721268998636,46.26251665,158.04,157.95,6.3311]
[1721268998944,46.26251665,158.04,157.94,15.8278]
[1721268999243,15.492,158.0,157.91,1.2661088]
[1721268999448,7.86161665,157.99,157.93,15.8294]
[1721268999738,1.26251665,157.98,157.93,22.1612]
[1721269000232,1.26251665,157.98,157.93,15.8294]
[1721269000412,1.26251665,157.98,157.91,6.3326]
[1721269000612,1.26251665,157.98,157.92,6.3321]
[1721269000842,1.26251665,157.98,157.92,15.83]
[1721269001046,7.59251665,157.98,157.92,22.1622]